Cogmind - Beta 12 --- EXPLORER MODE // 2024.02.25 @ 21:54:14 Player: daffie Result: Destroyed by as-33945 with Assembled F-torch Performance ------------- Evolutions (0) 0 Regions Visited (4) 800 Robots Destroyed (21) 105 Value Destroyed (401) 401 Prototype IDs (23) 460 Alien Tech Used (0) 0 Bonus (300) 300 TOTAL SCORE: 2066 Bonus ------- Aligned with FarCom 300 Cogmind --------- Core Integrity 0/250 Matter 215/300 Energy 138/250 System Corruption 0% Temperature Critical (726) Movement Rolling (95) Ox1 Location -9/Mines Parts ------- > --- POWER (1) -------- Ion Engine > --- PROPULSION (3) --- Wheel > --- UTILITY (2) ------ Structural Scanner Targeting Computer > --- WEAPON (2) ------- Guided Plasma Cannon Makeshift Shrapnel Gun > --- INVENTORY (5) ---- (None) Peak State ------------ > --- POWER ------------ Ion Engine > --- PROPULSION ------- Wheel Wheel Wheel > --- UTILITY ---------- Structural Scanner Targeting Computer > --- WEAPON ----------- Guided Plasma Cannon Makeshift Shrapnel Gun > --- INVENTORY -------- Wheel Wheel [Rating: 18] Favorites ----------- Power Ion Engine Engine Ion Engine Propulsion Wheel Wheel Wheel Utility Structural Scanner Device Structural Scanner Processor Targeting Computer Weapon Light Assault Rifle Energy Cannon Guided Plasma Cannon Ballistic Gun Light Assault Rifle Build | -11 -10 -10 -10 -9 ------- Run | Jun Mat Min Exi Min Slots Evolved 1 | . 1 . . . Power . | . . . . . Propulsion 1 | . 1 . . . Utility . | . . . . . Weapon . | . . . . . Parts Attached 14 | 7 3 2 2 . Power 2 | 1 . 1 . . Engine 2 | 1 . 1 . . Core . | . . . . . Reactor . | . . . . . Propulsion 5 | 2 3 . . . Treads . | . . . . . Leg . | . . . . . Wheel 5 | 2 3 . . . Hover . | . . . . . Flight . | . . . . . Utility 2 | 2 . . . . Device 1 | 1 . . . . Storage . | . . . . . Processor 1 | 1 . . . . Hackware . | . . . . . Protection . | . . . . . Artifact . | . . . . . Weapon 5 | 2 . 1 2 . Energy Gun . | . . . . . Energy Cannon 1 | . . . 1 . Ballistic Gun 4 | 2 . 1 1 . Ballistic Cannon . | . . . . . Launcher . | . . . . . Special Weapon . | . . . . . Impact Weapon . | . . . . . Slashing Weapon . | . . . . . Piercing Weapon . | . . . . . Special Melee Weapon . | . . . . . Unidentified Prototypes . | . . . . . Parts Lost 3 | . . 1 . 2 Power 1 | . . 1 . . Propulsion 2 | . . . . 2 Utility . | . . . . . Weapon . | . . . . . Highest Loss Streak 2 | . . 1 . 2 To Critical Strikes . | . . . . . Average Slot Usage (%) 95 | . 92 95 100 95 Engine 9 | . 12 7 12 12 Wheel 35 | . 30 37 37 32 Device 12 | . 12 12 12 12 Processor 12 | . 12 12 12 12 Energy Cannon 1 | . . . 5 12 Ballistic Gun 23 | . 25 25 18 12 Naked Turns . | . . . . . Heaviest Build 18 | 7 7 9 18 18 Greatest Support 30 | 20 30 30 30 30 Greatest Overweight (x) 2 | 2 . . . . Average Overweight (x) . | 1 . . . . Largest Inventory Capacity 5 | 5 5 5 5 5 Average Capacity 5 | 5 5 5 5 5 Most Carried 3 | 1 2 3 3 . Average Carried 1 | . . 2 1 . Final Capacity 5 | 5 5 5 5 5 Final Carried 2 | . 2 2 . . Class Distribution -------------------- 100% | Hacker-Mutant Dominant Class ---------------- Hacker-Mutant | -10/Materials Hacker-Mutant | -10/Mines Hacker-Mutant | -10/Exiles Hacker-Mutant | -9/Mines Resources | -11 -10 -10 -10 -9 ----------- Run | Jun Mat Min Exi Min Matter Collected 520 | 226 123 171 . . Remotely . | . . . . . Salvage Created 594 | 110 298 98 . 88 Parts 40 | 10 20 4 . 6 Haulers Intercepted 1 | . 1 . . . Recyclers Shooed . | . . . . . Parts Field Recycled . | . . . . . Retrieved Matter . | . . . . . Parts Self-Destructed . | . . . . . Prevented . | . . . . . Kills | -11 -10 -10 -10 -9 ------- Run | Jun Mat Min Exi Min Combat Hostiles Destroyed 12 | . 4 5 . 3 Guns 9 | . 4 5 . . Cannons 3 | . . . . 3 Classes Destroyed 9 | 1 6 . . 2 Worker 1 | . 1 . . . Tunneler 5 | 5 . . . . Hauler 1 | . 1 . . . Mechanic 1 | . 1 . . . Watcher 2 | . 2 . . . Swarmer 5 | . 1 4 . . Grunt 4 | . 3 1 . . Demolisher 2 | . . . . 2 Assembled 1 | . . . . 1 Best Kill Streak 6 | 5 6 2 . 3 Combat Bots Only 3 | . 2 2 . 3 Max Kills in Single Turn 1 | 1 1 1 . 1 Gunslinging . | . . . . . Exploded . | . . . . . Melee . | . . . . . Uniques/NPCs Destroyed . | . . . . . Combat | -11 -10 -10 -10 -9 -------- Run | Jun Mat Min Exi Min Damage Taken 675 | . 281 87 . 307 Core 255 | . 87 21 . 147 Absorbed by Shields . | . . . . . Core Remaining (%) 100 | 100 . . . . Volleys Fired 61 | 10 28 12 . 11 Largest 2 | 2 2 2 . 1 Hottest 120 | 40 40 44 . 120 Shots Fired 111 | 20 56 24 . 11 Gun 102 | 20 56 24 . 2 Cannon 9 | . . . . 9 Launcher . | . . . . . Special . | . . . . . Kinetic 102 | 20 56 24 . 2 Thermal 9 | . . . . 9 Explosive . | . . . . . Electromagnetic . | . . . . . Robot Hit Streak 28 | 15 28 9 . 17 Robot Miss Streak 1 | . 1 1 . 1 Penetration Max . | . . . . . Secondary Targets 2 | . 1 1 . . Max Gunslinging Chain 1 | . 1 1 . . Shots Hit Robots 87 | 15 48 15 . 9 Core Hits 39 | 6 16 11 . 6 Critical Kills . | . . . . . Critical Parts Destroyed . | . . . . . Critical Strikes . | . . . . . Melee Attacks . | . . . . . Impact . | . . . . . Slashing . | . . . . . Piercing . | . . . . . Sneak Attacks . | . . . . . Combat Hostiles . | . . . . . Follow-up Attacks . | . . . . . Damage Inflicted 1220 | 169 527 170 . 354 Guns 924 | 169 527 168 . 60 Cannons 294 | . . . . 294 Explosions . | . . . . . Melee . | . . . . . Ramming 2 | . . 2 . . Kinetic 924 | 169 527 168 . 60 Thermal 294 | . . . . 294 Explosive . | . . . . . Electromagnetic . | . . . . . Impact . | . . . . . Slashing . | . . . . . Piercing . | . . . . . Highest Corruption . | . . . . . Average Corruption . | . . . . . Corruption Purged . | . . . . . Corruption Blocked . | . . . . . Overload Shots . | . . . . . Overflow Damage . | . . . . . Projectiles . | . . . . . Explosions . | . . . . . Melee . | . . . . . Knockbacks . | . . . . . Impact . | . . . . . Kinetic . | . . . . . Secondary . | . . . . . Self-Inflicted Damage 1 | . . 1 . . Shots . | . . . . . Rammed 1 | . . 1 . . Targets Rammed 1 | . . 1 . . Kicked . | . . . . . Crushed . | . . . . . Highest Temperature 745 | . 35 13 . 745 Average Temperature 149 | . 13 5 . 431 Received Heat Transfer 294 | . 210 24 . 60 Effects 7 | . . . . 7 Shutdowns 1 | . . . . 1 Interference 2 | . . . . 2 Matter Decay 1 | . . . . 1 Damage (minor) 2 | . . . . 2 Damage (core) 1 | . . . . 1 Siege Activations . | . . . . . Robots Corrupted . | . . . . . Combat Hostiles . | . . . . . Parts Fried . | . . . . . Impact Corruptions . | . . . . . Robots Melted . | . . . . . Combat Hostiles . | . . . . . Parts Melted . | . . . . . Heat Transferred 640 | . . . . 640 Parts Sabotaged . | . . . . . Parts Stolen . | . . . . . Parts Stripped . | . . . . . Power Chain Reactions . | . . . . . Missiles Intercepted . | . . . . . Alert | -11 -10 -10 -10 -9 ------- Run | Jun Mat Min Exi Min Peak Influence 196 | 25 196 143 . 40 Initial 53 | . 12 53 . . Average 69 | 6 71 77 . 10 Maximum Alert Level . | . . . . . Low Security (%) 100 | 100 100 100 . 100 Level 1 . | . . . . . Level 2 . | . . . . . Level 3 . | . . . . . Level 4 . | . . . . . Level 5 . | . . . . . High Security . | . . . . . Max Security . | . . . . . Squads Dispatched 1 | . 1 . . . Investigation 1 | . 1 . . . Extermination . | . . . . . Reinforcement . | . . . . . Assault . | . . . . . Garrison . | . . . . . Intercept . | . . . . . Searches Triggered . | . . . . . Construction Impeded . | . . . . . Haulers Reinforced . | . . . . . Active Scanning Responses . | . . . . . Cargo Convoy Interrupts . | . . . . . Stealth | -11 -10 -10 -10 -9 --------- Run | Jun Mat Min Exi Min Distress Signals 1 | . 1 . . . Communications Jammed . | . . . . . Distress Signals . | . . . . . Times Spotted 33 | . 10 6 . 17 Peak Tracking Total 10 | . 6 2 . 10 Tactical Retreats . | . . . . . Traps | -11 -10 -10 -10 -9 ------- Run | Jun Mat Min Exi Min Traps Triggered 1 | . 1 . . . Indirectly . | . . . . . Trap Hack Attempts . | . . . . . Triggered . | . . . . . Disarmed . | . . . . . Reprogrammed . | . . . . . Reused . | . . . . . Traps Extracted . | . . . . . Installed . | . . . . . Triggered . | . . . . . Machines | -11 -10 -10 -10 -9 ---------- Run | Jun Mat Min Exi Min Machines Disabled . | . . . . . Max in Single Turn . | . . . . . Machines Repaired . | . . . . . Machines Sabotaged . | . . . . . Overloaded Fab Kills . | . . . . . Hacking | -11 -10 -10 -10 -9 --------- Run | Jun Mat Min Exi Min Machines Accessed 4 | . 3 . 1 . Terminals 2 | . 2 . . . Fabricators . | . . . . . Repair Stations . | . . . . . Recycling Units 1 | . 1 . . . Scanalyzers . | . . . . . Garrison Access . | . . . . . Total Hacks 9 | . 8 . 1 . Successful 7 | . 6 . 1 . Failed 2 | . 2 . . . Catastrophic 1 | . 1 . . . Database Lockouts . | . . . . . Manual 8 | . 7 . 1 . Terminals 7 | . 7 . . . Fabricators . | . . . . . Repair Stations . | . . . . . Recycling Units 1 | . 1 . . . Scanalyzers . | . . . . . Garrison Access . | . . . . . Terminal Hacks 4 | . 3 . 1 . Level Access Points 1 | . 1 . . . Branch Access Points 1 | . 1 . . . Zone Layout 1 | . 1 . . . EX-Prototype ID Bank 1 | . . . 1 . Fabricator Hacks . | . . . . . Repair Station Hacks . | . . . . . Recycling Unit Hacks . | . . . . . Scanalyzer . | . . . . . Garrison Access Hacks . | . . . . . Unauthorized Hacks 3 | . 3 . . . Terminals 2 | . 2 . . . Track 1 | . 1 . . . Botnet 1 | . 1 . . . Fabricators . | . . . . . Repair Stations . | . . . . . Recycling Units 1 | . 1 . . . Tunnel 1 | . 1 . . . Scanalyzers . | . . . . . Garrison Access . | . . . . . Data Cores Recovered . | . . . . . Used . | . . . . . Hacking Detections 1 | . 1 . . . Full Trace Events 1 | . 1 . . . Feedback Events . | . . . . . Feedback Blocked . | . . . . . Robot Schematics Acquired . | . . . . . Robots Built . | . . . . . Authchips . | . . . . . Time . | . . . . . Total Robot Build Rating . | . . . . . Part Schematics Acquired . | . . . . . Parts Built . | . . . . . Authchips . | . . . . . Time . | . . . . . Total Part Build Rating . | . . . . . Parts Repaired . | . . . . . Time . | . . . . . Parts Recycled . | . . . . . Recycled Matter . | . . . . . Retrieved Matter . | . . . . . Retrieved Components . | . . . . . Parts Scanalyzed . | . . . . . Part Schematics Acquired . | . . . . . Parts Damaged . | . . . . . Bothacking | -11 -10 -10 -10 -9 ------------ Run | Jun Mat Min Exi Min Used RIF Installer . | . . . . . Robots Hacked . | . . . . . Non-combat . | . . . . . Combat . | . . . . . Robot Hacks Applied . | . . . . . Relay Couplers Released . | . . . . . Fabnet Peak Effective % . | . . . . . Robots Rewired . | . . . . . Allies Hacked . | . . . . . Hacks Repelled . | . . . . . Allies | -11 -10 -10 -10 -9 -------- Run | Jun Mat Min Exi Min Total Allies 2 | . . . . 2 Largest Group 2 | . . . . 2 Highest-Rated Group 38 | . . . . 38 Highest-Rated Ally 31 | . . . . 31 Total Orders . | . . . . . Ally Attacks 3 | . . . . 3 Total Damage . | . . . . . Kills . | . . . . . Allies Corrupted . | . . . . . Allies Melted . | . . . . . Intel | -11 -10 -10 -10 -9 ------- Run | Jun Mat Min Exi Min Robot Analysis Total . | . . . . . Derelict Logs Recovered . | . . . . . Drone Launches . | . . . . . Drone Recoveries . | . . . . . Exploration | -11 -10 -10 -10 -9 ------------- Run | Jun Mat Min Exi Min Turns Passed 1320 | 76 242 782 178 42 Spaces Moved 1367 | 34 198 898 215 22 Core 31 | 31 . . . . Treads . | . . . . . Legs . | . . . . . Wheels 1336 | 3 198 898 215 22 Hover . | . . . . . Flight . | . . . . . Fastest Speed 50 | 50 80 80 80 80 Average Speed 80 | 108 80 80 80 80 Slowest Speed 150 | 150 80 80 80 80 Overloaded Moves . | . . . . . Propulsion Burnouts . | . . . . . Robots Hopped . | . . . . . Cave-ins Triggered . | . . . . . Exploration Rate (%) 41 | 3 39 100 60 6 Regions Visited 4 Branch Regions 3 Pre-discovered Areas 1 | . 1 . . . Known Exits Taken 4 | 1 1 1 1 . Unknown Exits Taken . | . . . . . Scrap Searched . | . . . . . Spaces Dug . | . . . . . Terrain Destroyed 1 | . . . . 1 Melee . | . . . . . Projectile 1 | . . . . 1 AOE . | . . . . . Terrain Rammed . | . . . . . Walls Destroyed . | . . . . . Machines Disabled . | . . . . . Actions | -11 -10 -10 -10 -9 --------- Run | Jun Mat Min Exi Min Total 1477 | 51 229 939 222 36 Wait 28 | . 1 24 . 3 Move 1363 | 33 197 897 214 22 Hop . | . . . . . Pick Up 5 | 1 . 2 2 . Fast Attach 7 | 6 1 . . . Attach 4 | 1 . 1 2 . Detach . | . . . . . Swap 3 | . 2 1 . . Drop 5 | . . 1 4 . Fire 61 | 10 28 12 . 11 Melee . | . . . . . Ram 1 | . . 1 . . Kick . | . . . . . Crush . | . . . . . Escape Stasis . | . . . . . Rewire . | . . . . . Trap . | . . . . . Miscellaneous . | . . . . . Route ------- -11/Junkyard -10/Materials (discovered 5 exits: Mat x3 / *Min x2) -10/Mines (discovered 3 exits: *Mat x2 / *Exi) -10/Exiles -9/Mines History --------- Turn | Location | Event 4 | -11/Junkyard | Identified exit to Materials 4 | -11/Junkyard | Discovered exit to Materials (range 16) 77 | -11/Junkyard | Entered Materials 77 | -10/Materials | Evolved 1 slot: Propulsion x1 164 | -10/Materials | Identified exit to Mines 164 | -10/Materials | Discovered exit to Mines (range 16) 293 | -10/Materials | Identified exit to Materials 311 | -10/Materials | Build established: Hacker-Mutant 319 | -10/Materials | Entered Mines 503 | -10/Mines | Deemed a non-threat by the Exiles lab entrance 503 | -10/Mines | Identified exit to Exiles 503 | -10/Mines | Discovered exit to Exiles (range 5) 519 | -10/Mines | Discovered exit to Materials (range 4) 573 | -10/Mines | A weapon hastily lodged in a ceiling crevice suddenly fell to the ground 787 | -10/Mines | Discovered exit to Materials (range 4) 1101 | -10/Mines | Entered Exiles 1122 | -10/Exiles | Met 8R-AWN 1135 | -10/Exiles | Met EX-HEX 1157 | -10/Exiles | Met EX-BIN 1168 | -10/Exiles | Aligned with FarCom system 1169 | -10/Exiles | Given EX-Vault access code 1190 | -10/Exiles | Opened EX-Vault 1197 | -10/Exiles | Found Gui. Plasma Cannon 1220 | -10/Exiles | Warned to stay clear of 0b10 Research branches 1243 | -10/Exiles | Met EX-DEC 1272 | -10/Exiles | Identified exit to Mines 1272 | -10/Exiles | Discovered exit to Mines (range 10) 1279 | -10/Exiles | Left Exiles lab with Gui. Plasma Cannon 1279 | -10/Exiles | Entered Mines 1286 | -9/Mines | Assembled infested the area 1306 | -9/Mines | Core integrity fell below 50% 1310 | -9/Mines | Core integrity fell below 20% 1321 | -9/Mines | Destroyed by as-33945 with Assembled F-torch Last Messages --------------- as-83078 destroyed. U-05 Engineer builds a Wall. Wheel destroyed. as-95070 destroyed. as-02473 destroyed. D-53 Grenadier destroyed. U-05 Engineer lays Concrete. Overheating: Targeting Computer damaged (-4). The unstable cave ceiling collapses. Power failure, Ion Engine shutdown. Overheating: Ion Engine damaged (-13). U-05 Engineer builds a Wall. Overheating: Matter decay (-65). Overheating: System interference. Targeting Computer temporarily disabled. Structural Scanner temporarily disabled. Wheel destroyed. U-05 Engineer lays Concrete. Overheating: Core damaged (-27). U-05 Engineer builds a Wall. Map ----- +----------------------------------------------------+ | ????????????????????????????????????????????????? | | ????????????????????????????????????????????????? | | ????????????????????????????????????????????????? | | ????????????????????????????????????????????????? | | ????????????????????????????????????????????????? | | ????????????????????????????????????????????????? | | ????????????????????????????????????????????????? | | ????????????????????????????????????????????????? | | ????????????????????????????????????????????????? | | ????????????????????????????????????????????????? | | ????????????????????????????????????????????????? | | ????????????????????????????????????????????????? | | ????????????????????????????????????????????????? | | ????????????????????????????????????????????????? | | ????????????????????????????????????????????????? | | ??????????????????????######????????????????????? | | ?????????????????? ##########???????????????????? | | ?????????????????? ##### #####?????????????????? | | ?????????????????? #####????????????????? | | ?????????????????????? ####???????????????? | | ????????????????????#### ###???????????????? | | ??????????????????###### ##???????????????? | | ?????????????????##### ###???????????????? | | ??????????????###### ###???????????????? | | ??????????????##### a a ###????????????????? | | ??????????????## aa%aa@ ###???????????????? | | ??????????????## a a%a a # ##???????????????? | | ??????????????## ###???????????????? | | ??????????????## ### ####???????????????? | | ??????????????## #### == ###????????????????? | | ???????????????????#### !%! ##?????????????????? | | ????????????????????### % ###?????????????????? | | ?????????????????????###!!* ###?????????????????? | | ?????????????????????####%####??????????????????? | | ??????????????????????###u####??????????????????? | | ??????????????????????###t###???????????????????? | | ??????????????????????### ##????????????????????? | | ???????????????????????## ##????????????????????? | | ???????????????????????##%##????????????????????? | | ???????????????????????## ????????????????????? | | ???????????????????????#####????????????????????? | | ???????????????????????#####????????????????????? | | ????????????????????????????????????????????????? | | ????????????????????????????????????????????????? | | ????????????????????????????????????????????????? | | ????????????????????????????????????????????????? | | ????????????????????????????????????????????????? | | ????????????????????????????????????????????????? | | ????????????????????????????????????????????????? | | ????????????????????????????????????????????????? | +----------------------------------------------------+ Best States ------------- Heat Dissipation 25 Energy Generation 10 Energy Capacity 250 Matter Stores 300 Matter Capacity 300 Sight Range 16 Terrain Scan Density 10 Resistance: KI 35 Resistance: TH 35 Resistance: EX 35 Resistance: EM 35 Resistance: I 35 Resistance: S 35 Resistance: P 35 Evasion (%) 44 Targeting Accuracy 5 Offensive Hacking 20 Item Schematics ----------------- None Robot Schematics ------------------ None Fabricated ------------ Nothing Alien Tech Used ----------------- None Achievements -------------- None Challenges ------------ None Game ------ Seed chipmonk funk Manual? 1 Play Time 00:23:17 Cumulative 2751.8 hours Start 2024.02.25 @ 20:02:35 End 2024.02.25 @ 21:54:14 Sessions 1 Manual Loads 0 Difficulty Explorer Special Mode None Game No. 91 Rogue 0 Adventurer 0 Explorer 91 Win Type - Total 6 Types 3/0/1/2/0/0/0/0/0 Lore% 65 Gallery% 89 Achievement% 100 Wizard Run 0 Options --------- ASCII 0 Keyboard 0 Movement Mouse Keybinds 0 Fullscreen 0 Font 28/Smallcaps Map View 76x50 Tactical HUD 0 Map Filters NONE Filters NONE Steam 1 RUN: 45cf3907-ee85-4152-9049-51758adec12c